fUST/lending_fUST_20250615
["ID","MTS","AMOUNT","RATE_DAILY","PERIOD"]
[365883747,1749969039262,-460.0,0.00021917,4]
[365883748,1749969039271,-460.0,0.00021917,4]
[365883749,1749969039280,-1500.56,0.00021917,4]
[365883750,1749969039290,-534.56,0.00021917,4]
[365883751,1749969039299,-430.0,0.00021917,4]
[365883752,1749969039308,-586.32,0.00021917,4]
[365883754,1749969039318,-3174.81,0.00021917,4]
[365883756,1749969039327,-2186.37,0.00021917,4]
[365883759,1749969039337,-460.0,0.00021917,4]
[365883762,1749969039347,-253.99059988,0.00021917,4]
[365883764,1749969039357,-12612.59688001,0.0002199,2]
[365883766,1749969039367,-395.20413537,0.00022,2]
[365883768,1749969039376,-65601.86875996,0.00022,2]
[365883770,1749969039386,-1671.69194551,0.00022038,6]
[365883772,1749969039395,-1671.69194551,0.00022176,6]
[365883774,1749969039405,-207.4,0.00022177,2]
[365883776,1749969039414,-230.0,0.00022191,4]
[365883778,1749969039424,-460.0,0.00022191,4]
[365883780,1749969039434,-460.0,0.00022191,4]
[365883782,1749969039444,-555.23,0.00022191,4]
[365883784,1749969039455,-460.0,0.00022191,4]
[365883786,1749969039465,-350.0,0.00022191,4]
[365883788,1749969039475,-460.0,0.00022191,2]
[365883791,1749969039485,-460.0,0.00022191,4]
[365883794,1749969039494,-460.0,0.00022191,4]
[365883796,1749969039504,-437.18884101,0.00022191,4]
[365883798,1749969039513,-460.0,0.00022191,4]
[365883800,1749969039523,-440.0,0.00022191,4]
[365883801,1749969039532,-2671.36,0.00022191,4]
[365883803,1749969039542,-460.0,0.00022191,4]
[365883805,1749969039553,-1112.56,0.00022191,4]
[365883808,1749969039563,-673.95,0.00022191,4]
[365883810,1749969039573,-460.0,0.00022191,4]
[365883812,1749969039583,-1986.45,0.00022191,4]
[365883814,1749969039592,-2376.43,0.00022191,4]
[365883817,1749969039602,-2237.09,0.00022191,4]
[365883819,1749969039611,-1004.5,0.00022191,4]
[365883822,1749969039620,-460.0,0.00022191,4]
[365883826,1749969039630,-572.14,0.00022191,4]
[365883828,1749969039640,-460.0,0.00022191,4]
[365883831,1749969039650,-460.0,0.00022191,4]
[365883834,1749969039659,-516.69456561,0.00022191,4]
[365883837,1749969039668,-903.47,0.00022191,4]
[365883840,1749969039679,-1135.81,0.00022191,4]
[365883843,1749969039688,-460.0,0.00022191,4]
[365883846,1749969039698,-460.0,0.00022191,4]
[365883849,1749969039707,-460.0,0.00022191,4]
[365883852,1749969039716,-460.0,0.00022191,4]
[365883855,1749969039725,-805.14,0.00022191,4]
[365883858,1749969039735,-460.0,0.00022191,4]
[365883860,1749969039744,-460.0,0.00022191,4]
[365883861,1749969039755,-460.0,0.00022191,4]
[365883862,1749969039765,-460.0,0.00022191,4]
[365883863,1749969039777,-460.0,0.00022191,4]
[365883864,1749969039787,-460.0,0.00022191,4]
[365883866,1749969039799,-475.43,0.00022191,4]
[365883868,1749969039808,-460.0,0.00022191,4]
[365883869,1749969039818,-1912.57,0.00022191,4]
[365883871,1749969039828,-460.0,0.00022191,4]
[365883874,1749969039840,-460.0,0.00022191,4]
[365883875,1749969039850,-629.05,0.00022191,4]
[365883877,1749969039859,-460.0,0.00022191,4]
[365883879,1749969039870,-460.0,0.00022191,4]
[365883881,1749969039879,-1547.26,0.00022191,4]
[365883883,1749969039889,-1466.39,0.00022191,4]
[365883885,1749969039898,-460.0,0.00022191,4]
[365883887,1749969039908,-460.0,0.00022191,4]
[365883889,1749969039917,-460.0,0.00022191,4]
[365883891,1749969039926,-811.66,0.00022191,4]
[365883893,1749969039936,-532.55,0.00022191,4]
[365883895,1749969039944,-2205.0,0.00022191,4]
[365883897,1749969039954,-460.0,0.00022191,4]
[365883899,1749969039963,-1330.03,0.00022191,4]
[365883900,1749969039973,-460.0,0.00022191,4]
[365883902,1749969039982,-460.0,0.00022191,4]
[365883904,1749969039991,-1500.56,0.00022191,4]
[365883906,1749969040000,-534.56,0.00022191,4]
[365883908,1749969040009,-586.32,0.00022191,4]
[365883910,1749969040019,-3174.81,0.00022191,4]
[365883912,1749969040028,-2186.37,0.00022191,4]
[365883914,1749969040038,-460.0,0.00022191,4]
[365883916,1749969040047,-160.0,0.00022272,2]
[365883918,1749969040056,-160.0,0.00022272,2]
[365883920,1749969040066,-835.55256958,0.00022272,2]
[365883922,1749969040075,-424.47602138,0.00022272,2]
[365883923,1749969040084,-229.86375354,0.00022272,2]
[365883926,1749969040094,-845.25843836,0.00022281,2]
[365883928,1749969040103,-158.51262344,0.000223,2]
[365883930,1749969040112,-1671.69194551,0.00022314,7]
[365883933,1749969040121,-500.0,0.00022356,2]
[365883935,1749969040130,-1671.69194551,0.00022452,7]
[365883938,1749969040139,-460.0,0.00022465,4]
[365883941,1749969040148,-460.0,0.00022465,4]
[365883944,1749969040157,-555.23,0.00022465,4]
[365883947,1749969040166,-460.0,0.00022465,4]
[365883950,1749969040176,-460.0,0.00022465,2]
[365883953,1749969040185,-460.0,0.00022465,4]
[365883956,1749969040194,-460.0,0.00022465,4]
[365883959,1749969040203,-460.0,0.00022465,4]
[365883962,1749969040212,-2671.36,0.00022465,4]
[365883965,1749969040221,-460.0,0.00022465,4]
[365883967,1749969040230,-1112.56,0.00022465,4]
[365883970,1749969040239,-673.95,0.00022465,4]
[365883973,1749969040248,-1986.45,0.00022465,4]
[365883976,1749969040257,-2376.43,0.00022465,4]
[365883979,1749969040266,-2237.09,0.00022465,4]
[365883981,1749969040275,-1004.5,0.00022465,4]
[365883985,1749969040288,-460.0,0.00022465,4]
[365883989,1749969040301,-572.14,0.00022465,4]
[365883992,1749969040313,-460.0,0.00022465,4]
[365883995,1749969040325,-460.0,0.00022465,4]
[365883998,1749969040338,-903.47,0.00022465,4]
[365884003,1749969040350,-1135.81,0.00022465,4]
[365884005,1749969040362,-460.0,0.00022465,4]
[365884008,1749969040374,-460.0,0.00022465,4]
[365884011,1749969040386,-298.62,0.00022465,4]
[365884015,1749969040398,-805.14,0.00022465,4]
[365884018,1749969040409,-460.0,0.00022465,4]
[365884021,1749969040421,-460.0,0.00022465,4]
[365884025,1749969040433,-460.0,0.00022465,4]
[365884028,1749969040445,-460.0,0.00022465,4]
[365884032,1749969040456,-460.0,0.00022465,4]
[365884035,1749969040467,-460.0,0.00022465,4]
[365884039,1749969040478,-475.43,0.00022465,4]
[365884042,1749969040490,-460.0,0.00022465,4]
[365884045,1749969040501,-1912.57,0.00022465,4]
[365884049,1749969040512,-460.0,0.00022465,4]
[365884052,1749969040524,-460.0,0.00022465,4]
[365884056,1749969040536,-629.05,0.00022465,4]
[365884059,1749969040546,-460.0,0.00022465,4]
[365884062,1749969040558,-1547.26,0.00022465,4]
[365884065,1749969040570,-460.0,0.00022465,4]
[365884069,1749969040580,-1466.39,0.00022465,4]
[365884072,1749969040591,-460.0,0.00022465,4]
[365884074,1749969040602,-460.0,0.00022465,4]
[365884076,1749969040614,-460.0,0.00022465,4]
[365884078,1749969040625,-811.66,0.00022465,4]
[365884082,1749969040638,-532.55,0.00022465,4]
[365884085,1749969040649,-2205.0,0.00022465,4]
[365884088,1749969040659,-460.0,0.00022465,4]
[365884091,1749969040669,-1330.03,0.00022465,4]
[365884094,1749969040679,-460.0,0.00022465,4]
[365884097,1749969040690,-460.0,0.00022465,4]
[365884100,1749969040701,-1500.56,0.00022465,4]
[365884103,1749969040712,-534.56,0.00022465,4]
[365884107,1749969040724,-586.32,0.00022465,4]
[365884111,1749969040735,-3174.81,0.00022465,4]
[365884114,1749969040746,-2186.37,0.00022465,4]
[365884117,1749969040759,-460.0,0.00022465,4]
[365884121,1749969040769,-168.91645925,0.00022589,2]
[365884124,1749969040779,-1671.69194551,0.0002259,7]
[365884128,1749969040793,-3949.4,0.0002272,2]
[365884131,1749969040804,-1671.69194551,0.00022728,7]
[365884134,1749969040816,-460.0,0.00022739,4]
[365884138,1749969040828,-460.0,0.00022739,4]
[365884141,1749969040840,-555.23,0.00022739,4]
[365884145,1749969040852,-460.0,0.00022739,4]
[365884148,1749969040863,-460.0,0.00022739,2]
[365884151,1749969040874,-460.0,0.00022739,4]
[365884154,1749969040884,-460.0,0.00022739,4]
[365884157,1749969040893,-460.0,0.00022739,4]
[365884160,1749969040903,-2671.36,0.00022739,4]
[365884163,1749969040913,-460.0,0.00022739,4]
[365884166,1749969040924,-1112.56,0.00022739,4]
[365884170,1749969040936,-673.95,0.00022739,4]
[365884174,1749969040949,-1986.45,0.00022739,4]
[365884177,1749969040961,-2376.43,0.00022739,4]
[365884180,1749969040972,-2237.09,0.00022739,4]
[365884184,1749969040982,-1004.5,0.00022739,4]
[365884187,1749969040991,-460.0,0.00022739,4]
[365884190,1749969041001,-572.14,0.00022739,4]
[365884193,1749969041011,-460.0,0.00022739,4]
[365884196,1749969041021,-460.0,0.00022739,4]
[365884199,1749969041033,-903.47,0.00022739,4]
[365884202,1749969041043,-1135.81,0.00022739,4]
[365884205,1749969041053,-460.0,0.00022739,4]
[365884208,1749969041063,-805.14,0.00022739,4]
[365884212,1749969041074,-460.0,0.00022739,4]
[365884215,1749969041085,-460.0,0.00022739,4]
[365884218,1749969041095,-460.0,0.00022739,4]
[365884221,1749969041105,-460.0,0.00022739,4]
[365884224,1749969041116,-460.0,0.00022739,4]
[365884227,1749969041127,-460.0,0.00022739,4]
[365884230,1749969041137,-475.43,0.00022739,4]
[365884233,1749969041147,-460.0,0.00022739,4]
[365884237,1749969041158,-1912.57,0.00022739,4]
[365884240,1749969041168,-460.0,0.00022739,4]
[365884243,1749969041179,-460.0,0.00022739,4]
[365884246,1749969041189,-629.05,0.00022739,4]
[365884249,1749969041199,-460.0,0.00022739,4]
[365884252,1749969041210,-1547.26,0.00022739,4]
[365884255,1749969041220,-460.0,0.00022739,4]
[365884258,1749969041231,-1466.39,0.00022739,4]
[365884261,1749969041242,-460.0,0.00022739,4]
[365884264,1749969041252,-460.0,0.00022739,4]
[365884268,1749969041263,-460.0,0.00022739,4]
[365884271,1749969041273,-811.66,0.00022739,4]
[365884274,1749969041283,-532.55,0.00022739,4]
[365884277,1749969041295,-2205.0,0.00022739,4]
[365884280,1749969041306,-460.0,0.00022739,4]
[365884283,1749969041316,-1330.03,0.00022739,4]
[365884286,1749969041328,-460.0,0.00022739,4]
[365884289,1749969041339,-460.0,0.00022739,4]
[365884292,1749969041350,-1500.56,0.00022739,4]
[365884295,1749969041361,-534.56,0.00022739,4]
[365884298,1749969041371,-586.32,0.00022739,4]
[365884300,1749969041381,-3174.81,0.00022739,4]
[365884303,1749969041391,-2186.37,0.00022739,4]
[365884305,1749969041401,-460.0,0.00022739,4]
[365884307,1749969041412,-1671.69194551,0.00022866,8]
[365884310,1749969041422,-3325.41216134,0.00022904,2]
[365884314,1749969041432,-604.606277,0.00022964,2]
[365884317,1749969041443,-519.043125,0.00022973,2]
[365884319,1749969041453,-500.0,0.00022973,2]
[365884322,1749969041464,-500.0,0.00022973,2]
[365884325,1749969041474,-500.0,0.00022973,2]
[365884328,1749969041484,-500.0,0.00022973,2]
[365884333,1749969041495,-500.0,0.00022973,2]
[365884336,1749969041505,-500.0,0.00022973,2]
[365884339,1749969041515,-500.0,0.00022973,2]
[365884342,1749969041525,-500.0,0.00022973,2]
[365884345,1749969041536,-500.0,0.00022973,2]
[365884348,1749969041546,-500.0,0.00022973,2]
[365884351,1749969041556,-500.0,0.00022973,2]
[365884354,1749969041567,-500.0,0.00022973,2]
[365884357,1749969041577,-500.0,0.00022973,2]
[365884360,1749969041587,-500.0,0.00022973,2]
[365884363,1749969041598,-600.0,0.00022973,2]
[365884367,1749969041608,-500.0,0.00022973,2]
[365884370,1749969041618,-1760.12789081,0.00022986,2]
[365884374,1749969041629,-298.85530929,0.00022986,2]
[365884377,1749969041639,-5600.94206452,0.0002299,2]
[365884380,1749969041650,-127618.16708413,0.00023,2]
[365884383,1749969041660,-5989.46906902,0.00023,2]
[365884386,1749969041670,-827.1631375,0.00023,2]
[365884389,1749969041681,-6022.6412642,0.00023,3]
[365884392,1749969041691,-45500.75441524,0.00023,20]
[365884395,1749969041702,-1671.69194551,0.00023003,8]
[365884398,1749969041714,-460.0,0.00023013,4]
[365884401,1749969041725,-460.0,0.00023013,4]
[365884405,1749969041736,-555.23,0.00023013,4]
[365884408,1749969041746,-460.0,0.00023013,4]
[365884411,1749969041757,-460.0,0.00023013,2]
[365884414,1749969041768,-460.0,0.00023013,4]
[365884417,1749969041778,-460.0,0.00023013,4]
[365884420,1749969041790,-2671.36,0.00023013,4]
[365884423,1749969041802,-460.0,0.00023013,4]
[365884426,1749969041812,-1112.56,0.00023013,4]
[365884428,1749969041823,-673.95,0.00023013,4]
[365884430,1749969041835,-1986.45,0.00023013,4]
[365884433,1749969041846,-2376.43,0.00023013,4]
[365884435,1749969041856,-2237.09,0.00023013,4]
[365884437,1749969041869,-1004.5,0.00023013,4]
[365884439,1749969041880,-460.0,0.00023013,4]
[365884441,1749969041891,-572.14,0.00023013,4]
[365884443,1749969041902,-460.0,0.00023013,4]
[365884445,1749969041913,-460.0,0.00023013,4]
[365884447,1749969041922,-903.47,0.00023013,4]
[365884449,1749969041932,-1135.81,0.00023013,4]
[365884467,1749969041941,-460.0,0.00023013,4]
[365884469,1749969042108,-805.14,0.00023013,4]
[365884472,1749969042120,-460.0,0.00023013,4]
[365884474,1749969042130,-460.0,0.00023013,4]
[365884476,1749969042139,-460.0,0.00023013,4]
[365884478,1749969042151,-460.0,0.00023013,4]
[365884480,1749969042160,-460.0,0.00023013,4]
[365884482,1749969042169,-460.0,0.00023013,4]
[365884483,1749969042179,-475.43,0.00023013,4]
[365884484,1749969042187,-460.0,0.00023013,4]
[365884486,1749969042196,-1912.57,0.00023013,4]
[365884487,1749969042205,-460.0,0.00023013,4]
[365884488,1749969042214,-460.0,0.00023013,4]
[365884489,1749969042223,-629.05,0.00023013,4]
[365884490,1749969042232,-460.0,0.00023013,4]
[365884491,1749969042241,-1547.26,0.00023013,4]
[365884492,1749969042250,-441.44472345,0.00023013,4]
[365884493,1749969042259,-1466.39,0.00023013,4]
[365884494,1749969042268,-460.0,0.00023013,4]
[365884495,1749969042277,-460.0,0.00023013,4]
[365884496,1749969042286,-460.0,0.00023013,4]
[365884497,1749969042295,-811.66,0.00023013,4]
[365884498,1749969042304,-532.55,0.00023013,4]
[365884499,1749969042314,-2205.0,0.00023013,4]
[365884500,1749969042323,-460.0,0.00023013,4]
[365884501,1749969042332,-1330.03,0.00023013,4]
[365884502,1749969042342,-460.0,0.00023013,4]
[365884503,1749969042351,-460.0,0.00023013,4]
[365884504,1749969042360,-1500.56,0.00023013,4]
[365884505,1749969042369,-534.56,0.00023013,4]
[365884506,1749969042378,-586.32,0.00023013,4]
[365884507,1749969042386,-3174.81,0.00023013,4]
[365884508,1749969042395,-1783.76405806,0.00023013,4]
[365884509,1749969042507,-402.60594194,0.00023013,4]
[365884510,1749969042516,-1.19315812,0.00023013,4]
[365884511,1749969042590,-460.0,0.00021917,4]
[365884512,1749969042598,-460.0,0.00022191,4]
[365884513,1749969042607,-458.80684188,0.00023013,4]
[365884514,1749969042616,-500.0,0.00023053,2]
[365884515,1749969042626,-500.0,0.00023073,2]
[365884516,1749969042635,-500.9324502,0.00023073,2]
[365884517,1749969042644,-423.89848147,0.00023073,2]
[365884518,1749969042653,-501.60488623,0.00023073,2]
[365884519,1749969042662,-501.64615102,0.00023073,2]
[365884520,1749969042671,-180.07260767,0.00023073,2]
[365884521,1749969042796,-355.33534456,0.00021917,4]
[365884522,1749969042808,-104.66465544,0.00021917,4]
[365884523,1749969042817,-460.0,0.00022191,4]
[365884524,1749969042827,-319.92739233,0.00023073,2]
[365884525,1749969042837,-380.68902381,0.00023073,2]
[365884526,1749969042847,-500.0,0.00023073,2]
[365884527,1749969042856,-500.0,0.00023094,2]
[365884528,1749969042865,-75969.41,0.000231,7]
[365884529,1749969042875,-500.0,0.00023104,2]
[365884531,1749969042885,-1671.69194551,0.00023141,8]
[365884532,1749969042894,-158.7816813,0.00023178,2]
[365884533,1749969042904,-176.5526112,0.00023178,2]
[365884534,1749969042913,-573.4653004,0.00023178,2]
[365884535,1749969042923,-1671.69194551,0.00023279,8]
[365884536,1749969042932,-460.0,0.00023287,4]
[365884537,1749969042941,-460.0,0.00023287,4]
[365884538,1749969042951,-555.23,0.00023287,4]
[365884539,1749969042962,-460.0,0.00023287,4]
[365884540,1749969042971,-460.0,0.00023287,2]
[365884541,1749969042980,-460.0,0.00023287,4]
[365884542,1749969042990,-460.0,0.00023287,4]
[365884543,1749969042999,-2671.36,0.00023287,4]
[365884544,1749969043008,-460.0,0.00023287,4]
[365884545,1749969043017,-1112.56,0.00023287,4]
[365884546,1749969043027,-1986.45,0.00023287,4]
[365884547,1749969043036,-2376.43,0.00023287,4]
[365884548,1749969043045,-2237.09,0.00023287,4]
[365884549,1749969043055,-1004.5,0.00023287,4]
[365884550,1749969043064,-460.0,0.00023287,4]
[365884551,1749969043073,-572.14,0.00023287,4]
[365884552,1749969043083,-460.0,0.00023287,4]
[365884553,1749969043094,-460.0,0.00023287,4]
[365884554,1749969043103,-903.47,0.00023287,4]
[365884555,1749969043113,-1135.81,0.00023287,4]
[365884556,1749969043122,-460.0,0.00023287,4]
[365884557,1749969043132,-805.14,0.00023287,4]
[365884558,1749969043141,-460.0,0.00023287,4]
[365884559,1749969043151,-460.0,0.00023287,4]
[365884560,1749969043161,-460.0,0.00023287,4]
[365884561,1749969043171,-460.0,0.00023287,4]
[365884562,1749969043180,-460.0,0.00023287,4]
[365884563,1749969043190,-460.0,0.00023287,4]
[365884564,1749969043200,-475.43,0.00023287,4]
[365884565,1749969043209,-460.0,0.00023287,4]
[365884566,1749969043219,-1912.57,0.00023287,4]
[365884567,1749969043228,-460.0,0.00023287,4]
[365884568,1749969043237,-460.0,0.00023287,4]
[365884569,1749969043246,-629.05,0.00023287,4]
[365884570,1749969043256,-460.0,0.00023287,4]
[365884571,1749969043265,-1547.26,0.00023287,4]
[365884572,1749969043275,-1466.39,0.00023287,4]
[365884573,1749969043285,-460.0,0.00023287,4]
[365884574,1749969043294,-460.0,0.00023287,4]
[365884575,1749969043303,-557.79809403,0.00023287,4]
[365884576,1749969043313,-811.66,0.00023287,4]
[365884577,1749969043322,-532.55,0.00023287,4]
[365884578,1749969043331,-2205.0,0.00023287,4]
[365884579,1749969043342,-460.0,0.00023287,4]
[365884580,1749969043351,-1330.03,0.00023287,4]
[365884581,1749969043361,-596.91600831,0.00023287,4]
[365884582,1749969043370,-460.0,0.00023287,4]
[365884583,1749969043380,-1500.56,0.00023287,4]
[365884584,1749969043389,-534.56,0.00023287,4]
[365884585,1749969043399,-586.32,0.00023287,4]
[365884586,1749969043408,-3174.81,0.00023287,4]
[365884587,1749969043418,-2186.37,0.00023287,4]
[365884588,1749969043427,-460.0,0.00023287,4]
[365884589,1749969043436,-727.20082703,0.00023296,2]
[365884590,1749969043446,-379.67679989,0.000233,15]
[365884591,1749969043455,-1605.073934,0.00023324,3]
[365884592,1749969043464,-500.0,0.00023335,2]
[365884593,1749969043473,-500.0,0.00023348,2]
[365884594,1749969043483,-168.91645925,0.00023361,2]
[365884595,1749969043492,-1671.69194551,0.00023417,9]
[365884596,1749969043502,-500.0,0.00023463,2]
[365884597,1749969043512,-2160.0,0.00023503,2]
[365884598,1749969043521,-653.0,0.00023503,2]
[365884599,1749969043530,-964.0,0.00023503,2]
[365884600,1749969043539,-501.1319147,0.00023521,2]
[365884601,1749969043549,-1001.22979174,0.00023521,2]
[365884602,1749969043559,-1000.0,0.00023521,2]
[365884603,1749969043568,-1002.13599302,0.00023521,2]
[365884604,1749969043578,-542.18707314,0.00023521,2]
[365884605,1749969043588,-501.8180993,0.00023521,2]
[365884607,1749969043597,-1009.62589891,0.00023521,2]
[365884609,1749969043606,-1001.22424022,0.00023521,2]
[365884610,1749969043615,-1001.32312854,0.00023521,2]
[365884611,1749969043624,-1000.0,0.00023521,2]
[365884612,1749969043634,-801.33803323,0.00023521,2]
[365884614,1749969043643,-1000.0,0.00023521,2]
[365884616,1749969043653,-501.13444693,0.00023521,2]
[365884618,1749969043662,-1000.0,0.00023521,2]
[365884620,1749969043671,-284.08277887,0.00023521,2]
[365884622,1749969043679,-1200.0,0.00023521,2]
[365884623,1749969043689,-215.0738,0.00023546,2]
[365884624,1749969043698,-1671.69194551,0.00023555,9]
[365884625,1749969043707,-460.0,0.00023561,4]
[365884626,1749969043716,-460.0,0.00023561,4]
[365884627,1749969043726,-555.23,0.00023561,4]
[365884628,1749969043736,-460.0,0.00023561,4]
[365884629,1749969043745,-460.0,0.00023561,2]
[365884630,1749969043755,-460.0,0.00023561,4]
[365884631,1749969043764,-460.0,0.00023561,4]
[365884632,1749969043774,-2671.36,0.00023561,4]
[365884633,1749969043784,-460.0,0.00023561,4]
[365884634,1749969043795,-1112.56,0.00023561,4]
[365884635,1749969043804,-1986.45,0.00023561,4]
[365884636,1749969043814,-2376.43,0.00023561,4]
[365884637,1749969043823,-2237.09,0.00023561,4]
[365884638,1749969043835,-1004.5,0.00023561,4]
[365884639,1749969043846,-460.0,0.00023561,4]
[365884640,1749969043856,-572.14,0.00023561,4]
[365884641,1749969043866,-434.55933913,0.00023561,4]
[365884642,1749969043875,-460.0,0.00023561,4]
[365884643,1749969043885,-296.79318405,0.00023561,4]
[365884773,1749969045794,-168.0,0.00021562,2]
[365884774,1749969045805,-168.0,0.00021667,2]
[365884775,1749969045814,-460.0,0.00021917,4]
[365884776,1749969045824,-460.0,0.00022191,4]
[365884777,1749969045834,-460.0,0.00022465,4]
[365884778,1749969045845,-460.0,0.00022465,4]
[365884779,1749969045854,-460.0,0.00022739,4]
[365884780,1749969045864,-460.0,0.00022739,4]
[365884781,1749969045875,-460.0,0.00023013,4]
[365884782,1749969045886,-460.0,0.00023013,4]
[365884783,1749969045896,-460.0,0.00023287,4]
[365884784,1749969045906,-460.0,0.00023287,4]
[365884785,1749969045915,-606.67681595,0.00023561,4]
[365884786,1749969045925,-1135.81,0.00023561,4]
[365884787,1749969045935,-460.0,0.00023561,4]
[365884788,1749969045944,-337.08046574,0.00023561,4]
[365884789,1749969045956,-468.05953426,0.00023561,4]
[365884790,1749969045966,-460.0,0.00023561,4]
[365884791,1749969045975,-460.0,0.00023561,4]
[365884792,1749969045984,-460.0,0.00023561,4]
[365884793,1749969045993,-460.0,0.00023561,4]
[365884794,1749969046002,-460.0,0.00023561,4]
[365884795,1749969046011,-460.0,0.00023561,4]
[365884796,1749969046020,-475.43,0.00023561,4]
[365884797,1749969046029,-383.03373074,0.00023561,4]
[365884855,1749969072436,13214.36,0.00025005,60]
[365884867,1749969212898,-390.0,0.00020164,2]
[365884880,1749969882939,186.759144,0.00013699,2]
[365884883,1749969927672,-110.0,0.00020164,2]
[365884884,1749969927696,-147.0,0.00020187,2]
[365884888,1749970029127,-500.0,0.00020164,2]
[365884889,1749970029148,-39.759144,0.00020187,2]
[365884890,1749970029170,-1244.735327,0.00020819,2]
[365884891,1749970029190,-180.212363,0.00020896,2]
[365884892,1749970029211,-1930.91,0.00021012,2]
[365884893,1749970029232,-150.0,0.00021187,2]
[365884894,1749970029253,-177.78123951,0.00021817,2]
[365884895,1749970029274,-168.0,0.00021887,2]
[365884896,1749970029302,-1381.69436966,0.000219,6]
[365884897,1749970029323,-300.0,0.00021914,2]
[365884898,1749970029343,-1200.0,0.00021915,2]
[365884899,1749970029365,-300.0,0.00021915,2]
[365884900,1749970029388,-500.0,0.00021915,2]
[365884901,1749970029408,-242.52167518,0.00021915,2]
[365884902,1749970029430,-328.77212744,0.00021915,2]
[365884903,1749970034084,-304.81798466,0.00021915,2]
[365884904,1749970034105,-103.38321765,0.00021915,2]
[365884905,1749970034134,-320.16898819,0.00021915,2]
[365884906,1749970045276,-166.881288,0.00021815,2]
[365884907,1749970045297,-155.81157434,0.00021817,2]
[365884908,1749970049099,-11.06971365,0.00021817,2]
[365884909,1749970049121,-76.44779416,0.00021915,2]
[365884910,1749970049144,-500.0,0.00021915,2]
[365884911,1749970049165,-500.0,0.00021915,2]
[365884912,1749970049187,-286.54435229,0.00021915,2]
[365884913,1749970049212,-464.93882971,0.00021915,2]
[365884914,1749970051085,-83.59143407,0.00021915,2]
[365884915,1749970051107,-186.27994221,0.00021915,2]
[365884920,1749970183100,150.0,0.00019815,2]
[365884931,1749970231879,-406.1297945,0.00020938,2]
[365884932,1749970231888,-1906.34,0.00021015,2]
[365884934,1749970231898,-177.78123951,0.00021817,2]
[365884935,1749970231908,-1335.63789071,0.000219,6]
[365884936,1749970231917,-26.05710495,0.00021915,2]
[365884938,1749970237956,-273.94289505,0.00021915,2]
[365884939,1749970237966,-129.19622281,0.00021915,2]
[365885297,1749970243325,-170.80377719,0.00021915,2]
[365885299,1749970243335,-500.0,0.00021916,2]
[365885301,1749970243345,-468.18059167,0.00021916,2]
[365885304,1749970243355,-313.72005779,0.00021916,2]
[365885306,1749970243365,-1200.0,0.00021916,2]
[365885308,1749970243374,-1012.04557235,0.00021917,2]
[365885313,1749970243387,-1318.399988,0.00021917,2]
[365885403,1749970245850,-1676.9843654,0.00021917,2]
[365885405,1749970245859,-460.0,0.00021917,4]
[365885407,1749970245869,-408.59589893,0.00021917,4]
[365885409,1749970245879,-472.53,0.00021917,4]
[365885411,1749970245890,-340.0,0.00021917,4]
[365885413,1749970245899,-460.0,0.00021917,4]
[365885415,1749970245909,-194.40931154,0.00021917,4]
[365885715,1749970397024,500.0,0.00019404,2]